Cogmind - Beta 11 @@@ ROGUE MODE // 2022.03.24 @ 09:43:39 Player: Happytimes Result: Self-destructed Performance ------------- Evolutions (2) 1000 Regions Visited (5) 1000 Robots Destroyed (18) 90 Value Destroyed (329) 329 Prototype IDs (1) 20 Alien Tech Used (0) 0 Bonus (36) 36 TOTAL SCORE: 2475 Bonus ------- Follower Combat Kills 68 Friendly Fire -32 Cogmind --------- Core Integrity 502/550 Matter 284/300 Energy 42/100 System Corruption 0% Temperature Warm (185) Movement Hovering (116) Ox1 Location -8/Materials Parts ------- > --- POWER (1) -------- (None) > --- PROPULSION (3) --- Airjet Airjet > --- UTILITY (4) ------ Improved Heat Sink Small Storage Unit Trap Scanner > --- WEAPON (3) ------- Spread Laser Spread Laser Beamcaster > --- INVENTORY (8) ---- Light Ion Engine Carbon-fiber Leg Improved Heat Sink Light Armor Plating Improved Light Cannon Advanced EMP Blaster Grenade Launcher Mining Laser Peak State ------------ > --- POWER ------------ Light Ion Engine > --- PROPULSION ------- Airjet Airjet Airjet > --- UTILITY ---------- Improved Heat Sink Small Storage Unit Trap Scanner Improved Sensor Array > --- WEAPON ----------- Spread Laser Spread Laser Beamcaster > --- INVENTORY -------- Ion Engine Carbon-fiber Leg Improved Heat Sink Light Armor Plating Improved Light Cannon Advanced EMP Blaster Grenade Launcher Mining Laser [Rating: 30] Favorites ----------- Power Ion Engine Engine Ion Engine Propulsion Aluminum Leg Leg Aluminum Leg Hover Unit Airjet Utility Small Storage Unit Device Sensor Array Storage Small Storage Unit Protection Light Armor Plating Weapon Spread Laser Energy Gun Spread Laser Ballistic Cannon Light Cannon Launcher Grenade Launcher Build | -11 -10 -10 -9 -9 -8 ------- Run | Scr Mat Min Mat Min Mat Slots Evolved 4 | . . . 2 . 2 Power . | . . . . . . Propulsion 1 | . . . 1 . . Utility 2 | . . . 1 . 1 Weapon 1 | . . . . . 1 Parts Attached 31 | 6 3 2 6 . 14 Power 5 | 1 . 1 1 . 2 Engine 5 | 1 . 1 1 . 2 Core . | . . . . . . Reactor . | . . . . . . Propulsion 6 | 2 . . . . 4 Treads . | . . . . . . Leg 3 | 2 . . . . 1 Wheel . | . . . . . . Hover 3 | . . . . . 3 Flight . | . . . . . . Utility 8 | 1 2 . 2 . 3 Device 5 | . 1 . 2 . 2 Storage 1 | 1 . . . . . Processor . | . . . . . . Hackware . | . . . . . . Protection 2 | . 1 . . . 1 Artifact . | . . . . . . Weapon 12 | 2 1 1 3 . 5 Energy Gun 8 | 2 . . 3 . 3 Energy Cannon . | . . . . . . Ballistic Gun . | . . . . . . Ballistic Cannon 1 | . 1 . . . . Launcher 3 | . . 1 . . 2 Special Weapon . | . . . . . . Impact Weapon . | . . . . . . Slashing Weapon . | . . . . . . Piercing Weapon . | . . . . . . Special Melee Weapon . | . . . . . . Unidentified Prototypes 1 | . . . . . 1 Parts Lost 3 | . . . . . 3 Power 1 | . . . . . 1 Propulsion 1 | . . . . . 1 Utility 1 | . . . . . 1 Weapon . | . . . . . . Highest Loss Streak 3 | . . . . . 3 To Critical Strikes . | . . . . . . Average Slot Usage (%) 92 | . 95 100 87 88 94 Engine 11 | . 14 14 11 11 9 Leg 21 | . 28 28 22 22 12 Hover 2 | . . . . . 9 Device 13 | . 5 . 16 22 21 Storage 11 | . 14 14 11 11 9 Protection 5 | . 3 14 5 . 5 Energy Gun 20 | . 19 14 20 22 22 Ballistic Cannon 2 | . 8 3 . . . Launcher 3 | . . 10 1 . 4 Naked Turns . | . . . . . . Heaviest Build 27 | 12 16 16 20 20 27 Greatest Support 35 | 20 20 20 20 20 35 Greatest Overweight (x) 3 | . . . . . 3 Average Overweight (x) . | . . . . . . Largest Inventory Capacity 8 | 8 8 8 8 8 8 Average Capacity 7 | 6 8 8 8 8 8 Most Carried 8 | 5 8 8 8 8 8 Average Carried 6 | 1 5 8 7 8 6 Final Capacity 8 | 8 8 8 8 8 8 Final Carried 8 | 1 8 8 8 8 8 Class Distribution -------------------- 78% | Mutant 10% | Tank 10% | Skirmisher Dominant Class ---------------- Mutant | -10/Materials Mutant | -10/Mines Mutant | -9/Materials Mutant | -9/Mines Tank | -8/Materials Resources | -11 -10 -10 -9 -9 -8 ----------- Run | Scr Mat Min Mat Min Mat Matter Collected 531 | 256 66 40 50 10 109 Remotely . | . . . . . . Salvage Created 555 | . 130 22 136 . 267 Parts 34 | . 10 4 8 . 12 Haulers Intercepted 2 | . . . 2 . . Recyclers Shooed . | . . . . . . Parts Field Recycled . | . . . . . . Retrieved Matter . | . . . . . . Parts Self-Destructed . | . . . . . . Prevented . | . . . . . . Kills | -11 -10 -10 -9 -9 -8 ------- Run | Scr Mat Min Mat Min Mat Combat Hostiles Destroyed 8 | . . 3 1 . 4 Guns 5 | . . . 1 . 4 AOE 3 | . . 3 . . . Classes Destroyed 7 | . 2 1 2 . 2 Tunneler 1 | . . . . . 1 Hauler 2 | . . . 2 . . Recycler 3 | . 1 . . . 2 Watcher 4 | . 3 . . . 1 Swarmer 5 | . . 3 . . 2 Grunt 1 | . . . . . 1 Sentry 2 | . . . 1 . 1 Best Kill Streak 5 | . 2 2 1 . 5 Combat Bots Only 2 | . . 2 1 . 2 Max Kills in Single Turn 3 | . 1 2 1 . 3 Gunslinging . | . . . . . . Exploded 2 | . . 2 . . . Melee . | . . . . . . Uniques/NPCs Destroyed . | . . . . . . Combat | -11 -10 -10 -9 -9 -8 -------- Run | Scr Mat Min Mat Min Mat Damage Taken 384 | . . 71 40 . 273 Core 58 | . . 10 . . 48 Absorbed by Shields . | . . . . . . Core Remaining (%) 98 | 100 . 96 . 100 . Volleys Fired 24 | . 8 2 4 . 10 Largest 3 | . 2 2 2 . 3 Hottest 205 | . 75 70 140 . 205 Shots Fired 54 | . 16 4 8 . 26 Gun 44 | . 8 2 8 . 26 Cannon 8 | . 8 . . . . Launcher 2 | . . 2 . . . Special . | . . . . . . Kinetic 8 | . 8 . . . . Thermal 34 | . . . 8 . 26 Explosive 2 | . . 2 . . . Electromagnetic 10 | . 8 2 . . . Robot Hit Streak 8 | . 6 . 6 . 8 Robot Miss Streak 5 | . 2 2 3 . 5 Penetration Max . | . . . . . . Secondary Targets . | . . . . . . Shots Hit Robots 40 | . 11 . 8 . 21 Core Hits 45 | . 4 3 11 . 27 Critical Kills . | . . . . . . Critical Parts Destroyed . | . . . . . . Critical Strikes 2 | . . . . . 2 Burn 2 | . . . . . 2 Melee Attacks . | . . . . . . Impact . | . . . . . . Slashing . | . . . . . . Piercing . | . . . . . . Sneak Attacks . | . . . . . . Combat Hostiles . | . . . . . . Follow-up Attacks . | . . . . . . Damage Inflicted 1220 | . 192 153 113 . 762 Guns 502 | . 111 . 113 . 278 Cannons 81 | . 81 . . . . Explosions 637 | . . 153 . . 484 Melee . | . . . . . . Ramming . | . . . . . . Kinetic 81 | . 81 . . . . Thermal 391 | . . . 113 . 278 Explosive 637 | . . 153 . . 484 Electromagnetic 111 | . 111 . . . . Impact . | . . . . . . Slashing . | . . . . . . Piercing . | . . . . . . Highest Corruption . | . . . . . . Average Corruption . | . . . . . . Corruption Purged . | . . . . . . Corruption Blocked . | . . . . . . Overload Shots . | . . . . . . Overflow Damage 69 | . . . . . 69 Projectiles . | . . . . . . Explosions 69 | . . . . . 69 Melee . | . . . . . . Knockbacks 2 | . 2 . . . . Impact . | . . . . . . Kinetic 2 | . 2 . . . . Secondary . | . . . . . . Self-Inflicted Damage 134 | . . 29 . . 105 Shots 3 | . . 1 . . 2 Rammed . | . . . . . . Targets Rammed . | . . . . . . Kicked . | . . . . . . Crushed . | . . . . . . Highest Temperature 348 | . 45 18 69 . 348 Average Temperature 71 | . 20 9 28 . 132 Received Heat Transfer 72 | . . . 9 . 63 Effects 1 | . . . . . 1 Short Circuit 1 | . . . . . 1 Siege Activations . | . . . . . . Robots Corrupted . | . . . . . . Combat Hostiles . | . . . . . . Parts Fried . | . . . . . . Impact Corruptions . | . . . . . . Robots Melted . | . . . . . . Combat Hostiles . | . . . . . . Parts Melted . | . . . . . . Heat Transferred 666 | . . . 147 . 519 Parts Sabotaged . | . . . . . . Parts Stolen . | . . . . . . Parts Stripped . | . . . . . . Power Chain Reactions . | . . . . . . Missiles Intercepted . | . . . . . . Alert | -11 -10 -10 -9 -9 -8 ------- Run | Scr Mat Min Mat Min Mat Peak Influence 287 | . 71 237 212 82 287 Initial 92 | . . 27 92 82 31 Average 102 | . 39 151 139 82 111 Maximum Alert Level 1 | . . 1 1 . 1 Low Security (%) 89 | 100 100 54 97 100 88 Level 1 10 | . . 45 2 . 11 Level 2 . | . . . . . . Level 3 . | . . . . . . Level 4 . | . . . . . . Level 5 . | . . . . . . High Security . | . . . . . . Max Security . | . . . . . . Squads Dispatched 2 | . . 1 1 . . Investigation . | . . . . . . Extermination . | . . . . . . Reinforcement 1 | . . . 1 . . Assault 1 | . . 1 . . . Garrison . | . . . . . . Intercept . | . . . . . . Searches Triggered . | . . . . . . Construction Impeded . | . . . . . . Haulers Reinforced . | . . . . . . Active Scanning Responses . | . . . . . . Cargo Convoy Interrupts . | . . . . . . Stealth | -11 -10 -10 -9 -9 -8 --------- Run | Scr Mat Min Mat Min Mat Distress Signals 2 | . . . . . 2 Communications Jammed . | . . . . . . Distress Signals . | . . . . . . Times Spotted 26 | . 7 4 3 . 12 Peak Tracking Total 4 | . 3 3 1 . 4 Tactical Retreats . | . . . . . . Traps | -11 -10 -10 -9 -9 -8 ------- Run | Scr Mat Min Mat Min Mat Traps Triggered . | . . . . . . Indirectly . | . . . . . . Trap Hack Attempts . | . . . . . . Triggered . | . . . . . . Disarmed . | . . . . . . Reprogrammed . | . . . . . . Reused . | . . . . . . Traps Extracted . | . . . . . . Installed . | . . . . . . Triggered . | . . . . . . Machines | -11 -10 -10 -9 -9 -8 ---------- Run | Scr Mat Min Mat Min Mat Machines Disabled 4 | . 2 . . . 2 Max in Single Turn 2 | . 2 . . . 2 Machines Sabotaged . | . . . . . . Garrisons Compromised . | . . . . . . Overloaded Fab Kills . | . . . . . . Hacking | -11 -10 -10 -9 -9 -8 --------- Run | Scr Mat Min Mat Min Mat Machines Accessed 4 | . 2 . 2 . . Terminals 4 | . 2 . 2 . . Fabricators . | . . . . . . Repair Stations . | . . . . . . Recycling Units . | . . . . . . Scanalyzers . | . . . . . . Garrison Access . | . . . . . . Total Hacks 11 | . 4 . 7 . . Successful 6 | . 3 . 3 . . Failed 5 | . 1 . 4 . . Catastrophic . | . . . . . . Database Lockouts . | . . . . . . Manual . | . . . . . . Terminals 11 | . 4 . 7 . . Fabricators . | . . . . . . Repair Stations . | . . . . . . Recycling Units . | . . . . . . Scanalyzers . | . . . . . . Garrison Access . | . . . . . . Terminal Hacks 6 | . 3 . 3 . . Branch Access Points 1 | . . . 1 . . Emergency Access Points 1 | . 1 . . . . Locate Traps 2 | . . . 2 . . Hauler Manifests 1 | . 1 . . . . Zone Layout 1 | . 1 . . . . Fabricator Hacks . | . . . . . . Repair Station Hacks . | . . . . . . Recycling Unit Hacks . | . . . . . . Scanalyzer . | . . . . . . Garrison Access Hacks . | . . . . . . Unauthorized Hacks . | . . . . . . Terminals . | . . . . . . Fabricators . | . . . . . . Repair Stations . | . . . . . . Recycling Units . | . . . . . . Scanalyzers . | . . . . . . Garrison Access . | . . . . . . Data Cores Recovered . | . . . . . . Used . | . . . . . . Hacking Detections 2 | . 1 . 1 . . Full Trace Events . | . . . . . . Feedback Events . | . . . . . . Feedback Blocked . | . . . . . . Robot Schematics Acquired . | . . . . . . Robots Built . | . . . . . . Authchips . | . . . . . . Time . | . . . . . . Total Robot Build Rating . | . . . . . . Part Schematics Acquired . | . . . . . . Parts Built . | . . . . . . Authchips . | . . . . . . Time . | . . . . . . Total Part Build Rating . | . . . . . . Parts Repaired . | . . . . . . Time . | . . . . . . Parts Recycled . | . . . . . . Recycled Matter . | . . . . . . Retrieved Matter . | . . . . . . Retrieved Components . | . . . . . . Parts Scanalyzed . | . . . . . . Part Schematics Acquired . | . . . . . . Parts Damaged . | . . . . . . Bothacking | -11 -10 -10 -9 -9 -8 ------------ Run | Scr Mat Min Mat Min Mat Used RIF Installer . | . . . . . . Robots Hacked . | . . . . . . Non-combat . | . . . . . . Combat . | . . . . . . Robot Hacks Applied . | . . . . . . Relay Couplers Released . | . . . . . . Fabnet Peak Effective % . | . . . . . . Robots Rewired . | . . . . . . Allies Hacked . | . . . . . . Hacks Repelled . | . . . . . . Allies | -11 -10 -10 -9 -9 -8 -------- Run | Scr Mat Min Mat Min Mat Total Allies 3 | . . 3 . . . Largest Group 3 | . . 3 2 1 1 Highest-Rated Group 76 | . . 76 62 31 31 Highest-Rated Ally 31 | . . 31 31 31 31 Total Orders . | . . . . . . Ally Attacks 34 | . . 8 14 . 12 Total Damage 398 | . . 105 167 . 126 Kills 8 | . . 3 3 . 2 Allies Corrupted . | . . . . . . Allies Melted . | . . . . . . Intel | -11 -10 -10 -9 -9 -8 ------- Run | Scr Mat Min Mat Min Mat Robot Analysis Total . | . . . . . . Derelict Logs Recovered 2 | . . 1 . 1 . Drone Launches . | . . . . . . Drone Recoveries . | . . . . . . Exploration | -11 -10 -10 -9 -9 -8 ------------- Run | Scr Mat Min Mat Min Mat Turns Passed 1346 | 46 243 213 301 217 326 Spaces Moved 923 | 44 156 135 226 180 182 Core 26 | 26 . . . . . Treads . | . . . . . . Legs 818 | 18 156 135 226 180 103 Wheels . | . . . . . . Hover 79 | . . . . . 79 Flight . | . . . . . . Fastest Speed 50 | 50 120 120 120 120 52 Average Speed 119 | 78 120 120 120 120 125 Slowest Speed 260 | 120 120 120 120 120 260 Overloaded Moves . | . . . . . . Propulsion Burnouts . | . . . . . . Robots Hopped . | . . . . . . Cave-ins Triggered . | . . . . . . Exploration Rate (%) 26 | 3 29 37 30 44 14 Regions Visited 5 Branch Regions 2 Pre-discovered Areas . | . . . . . . Known Exits Taken 1 | . . . 1 . . Unknown Exits Taken 4 | 1 1 1 . 1 . Scrap Searched 1 | . . . . 1 . Spaces Dug . | . . . . . . Terrain Destroyed 57 | . . 15 . . 42 Melee . | . . . . . . Projectile 1 | . . . . . 1 AOE 56 | . . 15 . . 41 Terrain Rammed . | . . . . . . Walls Destroyed . | . . . . . . Machines Disabled . | . . . . . . Actions | -11 -10 -10 -9 -9 -8 --------- Run | Scr Mat Min Mat Min Mat Total 1118 | 54 196 182 250 181 255 Wait 108 | . 19 43 2 2 42 Move 918 | 43 155 134 225 179 182 Hop . | . . . . . . Pick Up 24 | 5 9 . 6 . 4 Fast Attach 4 | 2 1 . . . 1 Attach 10 | 4 1 . 1 . 4 Detach . | . . . . . . Swap 17 | . 1 2 5 . 9 Drop 13 | . 2 1 7 . 3 Fire 24 | . 8 2 4 . 10 Melee . | . . . . . . Ram . | . . . . . . Kick . | . . . . . . Crush . | . . . . . . Escape Stasis . | . . . . . . Rewire . | . . . . . . Trap . | . . . . . . Miscellaneous . | . . . . . . Route ------- -11/Scrapyard -10/Materials -10/Mines -9/Materials (discovered 2 exits: *Min x2) -9/Mines -8/Materials History --------- Turn | Location | Event 14 | -11/Scrapyard | Discovered new exit (range 15) 47 | -11/Scrapyard | Entered Materials 241 | -10/Materials | Discovered new exit (range 6) 290 | -10/Materials | Entered Mines 291 | -10/Mines | Met a Derelict testing a Signal Generator 299 | -10/Mines | Learned Materials security intel 303 | -10/Mines | Met a Derelict bent on vengeance 311 | -10/Mines | Build established: Mutant 476 | -10/Mines | Discovered new exit (range 6) 503 | -10/Mines | Entered Materials 503 | -9/Materials | Accompanied by 2 allies 503 | -9/Materials | Evolved 2 slots: Propulsion x1, Utility x1 508 | -9/Materials | Led the pair of lost Derelicts to an unsafe place 705 | -9/Materials | Identified exit to Mines 804 | -9/Materials | Entered Mines 804 | -9/Mines | Accompanied by 1 ally 806 | -9/Mines | Learned Materials security intel 924 | -9/Mines | Discovered new exit (range 8) 1021 | -9/Mines | Entered Materials 1021 | -8/Materials | Accompanied by 1 ally 1021 | -8/Materials | Evolved 2 slots: Utility x1, Weapon x1 1347 | -8/Materials | Self-destructed Last Messages --------------- 01336_ Overheating: Short circuit. 01338_ R-06 Scavenger collects Lgt. Treads. 01342_ Nuclear Reactor explodes. 01342_ R-06 Scavenger destroyed. 01342_ Destroyed Mining Laser. 01342_ T-07 Excavator destroyed. 01342_ Destroyed Tractor Beam. 01342_ Nuclear Reactor explodes. 01342_ Destroyed Aluminum Leg. 01342_ Ion Engine destroyed. 01342_ Destroyed Ion Engine. 01342_ Imp. Sensor Array destroyed. 01342_ Destroyed Imp. Sensor Array. 01342_ R-06 Scavenger destroyed. 01342_ K-01 Serf collects debris. 01343_ The unstable cave ceiling collapses. 01344_ Airjet destroyed. 01344_ G-47 Trooper destroyed. 01346_ Penetrated by Slug. 01347_ K-01 Serf collects debris. Map ----- +----------------------------------------------------+ | ?????????????????????????????????????????????????? | | ?????????????????????????????????????????????????? | | ?????????????????????????????????????????????????? | | ?????????????????????????????????????????????????? | | ?????????????????????????????????????????????????? | | ?????????????????????????????????????????????????? | | ?????????????????????????????????????????????????? | | ?????????????????????????????????????????????????? | | ?????????????????????????????????????????????????? | | ?????????????????????????????????????????????????? | | ?????????????????????????????????????????????????? | | ?????????????????????????????????????????????????? | | ?????????????????????????????????????????????????? | | ?????????????????????????????????????????????????? | | ?????????????????????????????????????????????????? | | ?????????????????????????????????????????????????? | | ?????????????????????????????????????????????????? | | ?????????????????????????????????????????????????? | | ????????????????????????????###??????????????????? | | ???????????????????????????? ??????????????????? | | ????????????????????????????# #??????????????????? | | ????????????????????????????# #??????????????????? | | ???????????????????#???###### #??????????????????? | | ?????????? ??????# ### ##?????????????????? | | ??????????# ######k# # ##????????????????? | | ??????????# w h/ @ % #????????????????? | | ??????????# =%= #????????????????? | | ??????????; [ #????????????????? | | ??????????# = = #????????????????? | | ??????????# % k = !# #????????????????? | | ??????????# a #????????????????? | | ????????????######### ##????????????????? | | ??????????? # ?????????????????? | | ????????????""" """?## ##????????????????? | | ????????????""" """??# #?????????????????? | | ?????????????"" ""???# # #?????????????????? | | ????????????? ???# # """""#?????????????????? | | ?????????????? ????#w# """""#?????????????????? | | ?????????????? ????# # """""??????????????????? | | ????###########+###### # """""#?????????????????? | | ##### # """""#?????????????????? | | # +% """""#?????????????????? | | # # """""#?????????????????? | | """ # """ ![ ###### #?????????????????? | | """ # """ ![ #????# #?????????????????? | | """ # """ ![ #????# #?????????????????? | | / *#????#+#######?????????????????? | | # #????# #???????????????????????? | | # ^ ######??# #???? #?????????????????? | | "" # ^ #### #??"""#?????????????????? | +----------------------------------------------------+ Best States ------------- Heat Dissipation 45 Energy Generation 10 Energy Capacity 250 Matter Stores 300 Matter Capacity 300 Sight Range 16 Robot Scan Range 15 Terrain Scan Range 14 Terrain Scan Density 10 Armor Coverage 150 Evasion (%) 55 Item Schematics ----------------- None Robot Schematics ------------------ None Fabricated ------------ Nothing Alien Tech Used ----------------- None Achievements -------------- None Challenges ------------ None Game ------ Seed RocketMediumStreamer Manual? 0 Play Time 00:12:55 Cumulative 35.4 hours Start 2022.03.24 @ 09:32:30 End 2022.03.24 @ 09:43:39 Sessions 1 Manual Loads 0 Difficulty Rogue Special Mode None Game No. 106 Rogue 106 Adventurer 0 Explorer 0 Win Type - Total 0 Types 0/0/0/0/0/0/0/0/0 Lore% 31 Gallery% 43 Achievement% 33 Wizard Run 0 Options --------- ASCII 0 Keyboard 0 Movement Arrows Keybinds 0 Fullscreen 1 Font 18/SmallcapsGlow Map View 76x50 Tactical HUD 1 Map Filters NONE Filters NONE Steam 1 RUN: abe42d74-334d-43e6-bfd6-4c7dea3be9fa